bitfinex/quotes_SOLUSD_20241105
["timestamp","ask_amount","ask_price","bid_price","bid_amount"]
[1730823182438,23.776884,166.86,166.81,88.25121372]
[1730823182620,23.776884,166.85,166.81,58.27701372]
[1730823182806,23.776884,166.83,166.81,14.9871]
[1730823183006,23.776884,166.83,166.79,5.9952]
[1730823183319,23.776884,166.84,166.79,38.27961372]
[1730823183514,23.776884,166.84,166.8,17.29551372]
[1730823184015,0.1,166.9,166.8,17.29551372]
[1730823184016,0.3069863,166.91,166.84,20.0]
[1730823184319,0.3069863,166.91,166.87,17.29551372]
[1730823185408,0.3069863,166.91,166.88,5.9923]
[1730823185600,0.3069863,166.91,166.88,20.9731]
[1730823186812,0.3069863,166.91,166.88,14.9808]
[1730823187708,0.3069863,166.91,166.86,17.29551372]
[1730823188214,41.07239772,166.9,166.85,38.27241372]
[1730823188413,41.07239772,166.87,166.82,17.29551372]
[1730823188624,40.204684,166.89,166.81,5.9948]
[1730823188625,41.07239772,166.85,166.81,5.9948]
[1730823188918,41.07239772,166.85,166.79,38.27981372]
[1730823189123,41.07239772,166.85,166.8,17.29551372]
[1730823189934,41.07239772,166.85,166.79,38.27981372]
[1730823190419,17.29551372,166.84,166.79,38.27981372]
[1730823190622,23.776884,166.85,166.82,17.29551372]
[1730823190823,17.60250002,166.91,166.84,17.29551372]
[1730823191030,17.60250002,166.91,166.8,37.29551372]
[1730823191031,17.60250002,166.91,166.86,17.29551372]
[1730823192019,0.3069863,166.91,166.86,38.27091372]
[1730823192905,23.59380002,166.91,166.86,20.9754]
[1730823193300,23.776884,166.9,166.86,20.9754]
[1730823193702,23.776884,166.9,166.86,38.27091372]
[1730823194101,23.776884,166.9,166.85,17.29551372]
[1730823195309,23.776884,166.9,166.85,23.28851372]
[1730823196427,23.776884,166.9,166.86,17.29551372]
[1730823197627,23.776884,166.9,166.86,23.28821372]
[1730823198825,24.0838703,166.91,166.87,17.29551372]
[1730823199708,24.0838703,166.91,166.87,23.28791372]
[1730823200129,24.0838703,166.91,166.87,38.26961372]
[1730823200512,0.3069863,166.91,166.89,17.29551372]
[1730823200712,0.3069863,166.91,166.9,37.29551372]
[1730823201734,0.3069863,166.91,166.9,43.28711372]
[1730823203636,0.3069863,166.91,166.9,43.38711372]
[1730823204436,0.3069863,166.91,166.9,43.28711372]
[1730823210345,0.3069863,166.91,166.9,43.38711372]
[1730823210640,0.3069863,166.91,166.9,76.90036554]
[1730823210845,0.3069863,166.99,166.9,76.90036554]
[1730823210846,0.3069863,166.99,166.91,20.1]
[1730823211027,0.3069863,166.99,166.96,17.29551372]
[1730823212135,0.3069863,166.99,166.97,20.9617]
[1730823213048,0.3069863,166.99,166.97,38.25721372]
[1730823213546,0.3069863,166.99,166.97,20.9617]
[1730823213745,0.3069863,166.99,166.97,38.25721372]
[1730823214556,0.3069863,166.99,166.96,17.29551372]
[1730823214725,0.3069863,166.99,166.92,50.9224]
[1730823214726,0.3069863,166.99,166.98,20.0]
[1730823215050,0.3069863,166.99,166.98,37.29551372]
[1730823216638,0.3069863,166.99,166.98,43.28421372]
[1730823225146,0.3069863,166.99,166.98,17.29551372]
[1730823225338,0.3069863,166.99,166.96,17.29551372]
[1730823225845,0.3069863,166.99,166.95,17.29551372]
[1730823226153,17.60250002,166.99,166.94,17.29551372]
[1730823226762,17.29551372,166.98,166.93,38.26231372]
[1730823227064,17.29551372,166.98,166.93,20.9668]
[1730823227731,17.29551372,166.98,166.93,38.26231372]
[1730823230849,17.60250002,166.99,166.93,38.26231372]
[1730823231048,23.776884,166.98,166.93,38.26231372]
[1730823231265,0.3069863,166.99,166.95,17.29551372]
[1730823231571,0.3069863,166.99,166.94,17.29551372]
[1730823231757,0.3069863,166.99,166.97,17.29551372]
[1730823231942,0.3069863,166.99,166.93,50.9194]
[1730823231943,0.3069863,166.99,166.98,17.29551372]
[1730823233246,0.3069863,166.99,166.98,23.28421372]
[1730823233549,0.3069863,166.99,166.98,43.28421372]
[1730823235947,0.3069863,166.99,166.98,43.38421372]
[1730823236251,0.3069863,166.99,166.98,43.48421372]
[1730823236451,0.3069863,166.99,166.98,43.38421372]
[1730823238175,0.3069863,166.99,166.98,43.48421372]
[1730823238352,0.3069863,166.99,166.98,43.38421372]
[1730823238553,0.3069863,166.99,166.98,51.93525034]
[1730823239055,0.3069863,166.99,166.98,52.03525034]
[1730823240152,0.3069863,166.99,166.98,52.16074034]
[1730823241271,0.3069863,166.99,166.98,52.06074034]
[1730823241576,0.3069863,166.99,166.98,52.16074034]
[1730823241746,0.3069863,166.99,166.98,52.06074034]
[1730823241946,0.3069863,166.99,166.98,52.16074034]
[1730823242172,0.3069863,166.99,166.98,52.06074034]
[1730823242364,0.3069863,166.99,166.98,52.16074034]
[1730823244574,0.3069863,166.99,166.98,52.06074034]
[1730823244882,0.3069863,166.99,166.98,52.16074034]
[1730823245576,0.3069863,166.99,166.98,52.06074034]
[1730823245879,0.3069863,166.99,166.98,52.16074034]
[1730823246284,0.3069863,166.99,166.98,52.06074034]
[1730823246459,0.3069863,166.99,166.98,51.83525034]
[1730823247479,0.3069863,166.99,166.98,31.83525034]
[1730823248672,0.3069863,166.99,166.97,14.9724]
[1730823248878,0.3069863,166.99,166.97,20.9614]
[1730823249378,0.3069863,166.99,166.98,11.02787458]
[1730823250661,0.3069863,166.99,166.98,17.01657458]
[1730823251063,0.3069863,166.99,166.98,5.9887]
[1730823251279,0.3069863,166.99,166.98,23.21816215]
[1730823251479,0.3069863,166.99,166.98,5.9887]
[1730823252059,0.3069863,166.99,166.98,17.22946215]
[1730823252585,0.3069863,166.99,166.97,17.22946215]
[1730823253081,0.3069863,166.99,166.98,23.21816215]
[1730823254470,0.3069863,166.99,166.97,32.20176215]
[1730823254670,0.3069863,166.99,166.98,17.22946215]
[1730823256261,0.3069863,166.99,166.98,23.21816215]
[1730823256485,0.3069863,166.99,166.94,6.24614088]
[1730823256486,45.14464845,166.99,166.94,12.23624088]
[1730823256781,17.22946215,166.95,166.92,20.9672]
[1730823257081,17.22946215,166.95,166.92,20.9675]
[1730823257670,17.22946215,166.95,166.92,14.9767]
[1730823257884,17.22946215,166.95,166.89,18.27129405]
[1730823257885,17.22946215,166.93,166.9,5.9913]
[1730823258692,17.22946215,166.96,166.9,38.19976215]
[1730823260485,17.22946215,166.95,166.9,38.19976215]
[1730823261389,17.22946215,166.94,166.9,14.979]
[1730823261583,17.22946215,166.93,166.9,14.979]
[1730823261974,17.22946215,166.92,166.9,14.979]
[1730823262171,17.22946215,166.92,166.89,5.9919]
[1730823262172,40.38546215,166.91,166.88,6.24955652]
[1730823262380,17.22946215,166.9,166.88,6.24955652]
[1730823262684,17.22946215,166.9,166.87,5.9924]
[1730823262886,23.156,166.91,166.87,5.9924]
[1730823262887,40.38546215,166.91,166.87,5.9924]
[1730823263085,40.38546215,166.91,166.87,20.9741]
[1730823263482,40.38546215,166.91,166.87,14.9817]
[1730823263872,17.22946215,166.88,166.83,21.23525306]
[1730823265091,17.22946215,166.88,166.83,38.20816215]
[1730823266189,17.22946215,166.88,166.83,20.9787]
[1730823266699,17.22946215,166.87,166.83,20.9787]
[1730823266876,17.22946215,166.86,166.83,20.9787]
[1730823267272,17.22946215,166.85,166.83,20.9787]
[1730823267794,17.22946215,166.85,166.8,53.45440192]
[1730823267795,17.22946215,166.84,166.8,6.24893977]
[1730823268092,17.22946215,166.88,166.77,1.04313958]
[1730823268093,17.22946215,166.82,166.79,14.9885]
[1730823268583,17.22946215,166.81,166.79,14.9885]
[1730823268774,41.00634615,166.8,166.76,5.9966]
[1730823268974,41.00634615,166.8,166.75,21.24133738]
[1730823268975,17.22946215,166.79,166.75,14.9916]
[1730823270091,17.22946215,166.79,166.75,20.9886]
[1730823271193,17.22946215,166.79,166.75,14.9916]
[1730823271371,23.776884,166.8,166.71,14.9956]
[1730823271372,17.22946215,166.77,166.71,14.9956]
[1730823271577,17.22946215,166.75,166.71,14.9956]
[1730823272091,6.1956,166.73,166.71,20.994]
[1730823272274,23.42506215,166.73,166.71,20.994]
[1730823273977,6.1956,166.73,166.71,20.994]
[1730823276271,6.1956,166.73,166.72,17.22946215]
[1730823276473,6.4344,166.77,166.72,17.22946215]
[1730823276678,23.776884,166.76,166.73,17.22946215]
[1730823276881,23.776884,166.76,166.72,17.22946215]
[1730823277481,6.4344,166.77,166.73,37.22946215]
[1730823277999,6.4344,166.77,166.74,17.22946215]
[1730823278182,15.8515,166.78,166.76,17.22946215]
[1730823278376,15.8515,166.78,166.77,5.9962]
[1730823279589,15.8515,166.78,166.76,14.9915]
[1730823279590,15.8515,166.78,166.76,32.22096215]
[1730823280381,23.776884,166.8,166.76,32.22096215]
[1730823280701,6.4344,166.81,166.78,17.22946215]
[1730823281196,6.4344,166.81,166.77,37.22946215]
[1730823282091,6.4344,166.81,166.78,20.9857]
[1730823282479,23.66386215,166.81,166.78,20.9857]
[1730823283101,41.00634615,166.8,166.78,14.9898]
[1730823283288,17.22946215,166.79,166.78,14.9898]
[1730823283486,17.22946215,166.79,166.78,20.9857]
[1730823283691,23.776884,166.8,166.79,20.0]
[1730823283884,6.4344,166.81,166.79,20.0]
[1730823284694,6.09,166.85,166.8,17.22946215]
[1730823284891,6.09,166.85,166.82,17.22946215]
[1730823285093,6.09,166.85,166.83,38.20886215]
[1730823285387,6.09,166.85,166.83,20.9794]
[1730823286490,22.4034,166.91,166.84,37.22946215]
[1730823286689,22.4034,166.91,166.88,17.22946215]
[1730823286898,22.4034,166.91,166.88,20.0]
[1730823287105,22.4034,166.91,166.89,5.9919]
[1730823288181,22.4034,166.91,166.87,20.9736]
[1730823288600,22.4034,166.91,166.87,38.20306215]
[1730823290095,22.4034,166.91,166.88,17.22946215]
[1730823290496,0.3069863,166.99,166.86,15.4211]
[1730823290703,21.6476,166.98,166.92,17.22946215]
[1730823290910,17.22946215,166.97,166.91,37.22946215]
[1730823291083,17.22946215,166.97,166.91,20.0]
[1730823291414,17.22946215,166.96,166.91,20.0]
[1730823291595,17.22946215,166.96,166.87,20.0]
[1730823291596,17.22946215,166.92,166.87,20.0]
[1730823291797,17.22946215,166.91,166.87,20.0]
[1730823292208,23.776884,166.91,166.88,20.9731]
[1730823293496,23.776884,166.92,166.88,20.9731]
[1730823294516,41.00634615,166.92,166.88,20.9731]
[1730823294717,23.776884,166.92,166.88,20.9731]
[1730823294907,23.86956215,166.91,166.88,20.9731]
[1730823295102,17.22946215,166.89,166.88,14.9808]
[1730823295413,41.00634615,166.89,166.88,14.9808]
[1730823295614,23.776884,166.88,166.84,20.0]
[1730823295806,41.00634615,166.88,166.84,34.9837]
[1730823296001,17.22946215,166.87,166.84,14.9837]
[1730823296315,23.776884,166.85,166.84,14.9837]
[1730823299113,23.776884,166.85,166.84,32.21316215]
[1730823299313,41.00634615,166.89,166.84,32.21316215]
[1730823300318,23.776884,166.9,166.87,17.22946215]
[1730823300498,17.22946215,166.9,166.84,38.20686215]
[1730823300700,17.22946215,166.89,166.84,38.20686215]
[1730823300899,17.22946215,166.89,166.84,20.9774]
[1730823301300,17.22946215,166.87,166.84,14.9837]
[1730823301508,17.22946215,166.86,166.82,5.9944]
[1730823301802,0.1,166.89,166.82,5.9944]
[1730823301803,41.00634615,166.85,166.82,5.9944]
[1730823302008,23.776884,166.85,166.83,17.22946215]
[1730823302393,17.22946215,166.9,166.84,17.22946215]
[1730823302628,22.3974,166.91,166.87,17.22946215]
[1730823302917,22.3974,166.91,166.88,17.22946215]
[1730823303118,22.3974,166.91,166.89,17.22946215]
[1730823303300,22.3974,166.91,166.88,17.22946215]
[1730823303820,22.3974,166.91,166.89,5.9919]
[1730823304400,23.776884,166.9,166.89,5.9919]
[1730823304899,22.3974,166.91,166.89,5.9919]
[1730823305101,41.00634615,166.9,166.85,17.22946215]
[1730823305306,23.776884,166.88,166.84,32.21306215]
[1730823305505,23.776884,166.88,166.85,17.22946215]
[1730823305703,23.776884,166.89,166.85,17.22946215]
[1730823306019,23.776884,166.89,166.86,5.993]
[1730823306816,41.00634615,166.89,166.84,32.21306215]
[1730823307223,17.22946215,166.87,166.84,14.9836]
[1730823307414,23.776884,166.86,166.81,38.21136215]
[1730823307613,41.00634615,166.86,166.81,20.9819]
[1730823307821,23.776884,166.84,166.81,20.9819]
[1730823308325,23.776884,166.85,166.81,38.21136215]
[1730823308626,23.776884,166.85,166.81,20.9819]
[1730823308802,41.00634615,166.85,166.81,20.9819]
[1730823309718,41.00634615,166.86,166.81,20.9819]
[1730823311320,38.91686215,166.83,166.79,20.0]
[1730823311624,23.776884,166.82,166.79,20.0]
[1730823311801,23.776884,166.82,166.8,20.9832]
[1730823311997,23.776884,166.82,166.8,38.21266215]
[1730823312220,23.776884,166.82,166.8,20.9832]
[1730823313625,23.776884,166.8,166.77,20.0]
[1730823314127,23.776884,166.8,166.78,5.9959]
[1730823314421,23.776884,166.82,166.78,20.9857]
[1730823314614,23.776884,166.82,166.78,38.21516215]
[1730823314815,23.776884,166.82,166.78,20.9857]
[1730823315011,17.22946215,166.8,166.75,17.22946215]
[1730823315218,17.22946215,166.77,166.74,14.9925]
[1730823315402,41.00634615,166.76,166.72,5.998]
[1730823315605,17.22946215,166.75,166.72,5.998]
[1730823315921,23.776884,166.74,166.7,17.53644845]
[1730823316230,41.00634615,166.75,166.71,20.9945]
[1730823316438,23.776884,166.75,166.71,20.9945]
[1730823317126,23.776884,166.73,166.71,20.9945]
[1730823317424,41.00634615,166.73,166.71,14.9961]
[1730823318417,23.776884,166.73,166.71,14.9961]
[1730823318612,23.776884,166.74,166.71,14.9961]
[1730823319628,41.00634615,166.74,166.71,14.9961]
[1730823319810,23.776884,166.74,166.71,14.9961]
[1730823320431,41.00634615,166.74,166.71,14.9961]
[1730823320731,23.776884,166.74,166.71,14.9961]
[1730823321619,23.776884,166.74,166.7,0.3069863]
[1730823322019,23.776884,166.74,166.7,23.53514845]
[1730823322326,23.776884,166.74,166.7,6.3056863]
[1730823322626,23.776884,166.74,166.7,23.53514845]
[1730823324217,0.2,166.8,166.73,17.22946215]
[1730823324218,16.0677,166.79,166.73,17.22946215]
[1730823324439,16.0677,166.79,166.76,17.22946215]
[1730823324725,6.5391,166.8,166.77,17.22946215]
[1730823324929,6.5391,166.8,166.76,17.22946215]
[1730823325118,6.5391,166.8,166.78,17.22946215]
[1730823325323,33.29716215,166.83,166.79,17.22946215]
[1730823325324,16.0677,166.83,166.79,17.22946215]
[1730823325626,16.0677,166.83,166.81,17.22946215]
[1730823325815,16.0677,166.83,166.81,23.22416215]
[1730823326018,6.0845,166.84,166.81,38.21126215]
[1730823326247,6.0845,166.84,166.82,17.22946215]
[1730823326418,16.4352,166.87,166.83,17.22946215]
[1730823326613,16.4352,166.87,166.84,17.22946215]
[1730823326920,16.4352,166.87,166.83,17.22946215]
[1730823327313,16.4352,166.87,166.83,27.61678691]
[1730823328739,23.776884,166.86,166.83,27.61678691]
[1730823329254,23.776884,166.86,166.82,27.61678691]
[1730823330323,23.776884,166.86,166.82,33.61118691]
[1730823330924,23.776884,166.86,166.83,27.61678691]
[1730823331327,23.776884,166.86,166.82,48.59738691]
[1730823331736,51.39367091,166.86,166.82,14.9862]
[1730823331931,23.776884,166.86,166.83,27.61678691]
[1730823332345,23.776884,166.86,166.83,33.61078691]
[1730823332548,23.776884,166.86,166.85,27.61678691]
[1730823332734,23.776884,166.87,166.85,27.61678691]
[1730823333041,6.4758,166.88,166.85,27.61678691]
[1730823333443,6.4758,166.88,166.83,48.59608691]
[1730823334319,23.776884,166.87,166.83,48.59608691]
[1730823334523,23.776884,166.87,166.76,198.37375642]
[1730823334524,23.776884,166.85,166.81,5.9944]
[1730823334942,23.776884,166.85,166.81,33.61118691]
[1730823336448,6.4758,166.88,166.84,27.61678691]
[1730823336629,23.776884,166.87,166.84,27.61678691]
[1730823338255,23.776884,166.87,166.85,27.61678691]
[1730823338825,23.776884,166.87,166.84,27.61678691]
[1730823339027,6.0781,166.98,166.89,0.1]
[1730823339249,6.0781,166.98,166.93,27.61678691]
[1730823339449,6.0781,166.98,166.94,27.61678691]
[1730823339645,0.3069863,166.99,166.89,20.2]
[1730823339852,0.3069863,166.99,166.98,27.61678691]
[1730823340638,0.3069863,166.99,166.97,27.61678691]
[1730823340953,0.3069863,166.99,166.98,27.61678691]
[1730823341528,0.3069863,166.99,166.97,27.61678691]
[1730823341749,0.3069863,166.99,166.96,20.0]
[1730823342337,0.3069863,166.99,166.95,20.0]
[1730823342538,0.3069863,166.99,166.96,5.9894]
[1730823344750,0.3069863,166.99,166.95,14.9745]
[1730823344751,27.92377321,166.99,166.95,14.9745]
[1730823345056,27.92377321,166.99,166.95,20.9643]
[1730823345249,0.3069863,166.99,166.95,20.9643]
[1730823345463,27.92377321,166.99,166.95,20.9643]
[1730823345758,27.92377321,166.99,166.95,14.9745]
[1730823345965,27.92377321,166.99,166.88,187.61678691]
[1730823345966,27.61678691,166.96,166.91,27.61678691]
[1730823346253,27.61678691,166.95,166.91,14.9777]
[1730823346629,27.61678691,166.96,166.91,42.59448691]
[1730823347538,27.61678691,166.96,166.91,48.58568691]
[1730823348249,23.776884,166.98,166.92,27.61678691]
[1730823348439,27.61678691,166.98,166.92,27.61678691]
[1730823348756,27.61678691,166.97,166.91,48.58568691]
[1730823349061,27.61678691,166.95,166.91,20.9689]
[1730823349269,27.61678691,166.94,166.91,14.9777]
[1730823349562,17.2490408,166.93,166.89,5.9919]
[1730823349867,17.2490408,166.9,166.87,14.9815]
[1730823350162,23.776884,166.87,166.78,6.24331819]
[1730823350364,17.2490408,166.84,166.79,38.2327408]
[1730823350569,17.2490408,166.82,166.79,20.9837]
[1730823351061,17.2490408,166.81,166.76,38.2369408]
[1730823351260,17.2490408,166.8,166.76,20.9879]
[1730823351562,27.6453418,166.81,166.76,20.9879]
[1730823351947,33.6856418,166.83,166.78,27.6453418]
[1730823352254,6.0403,166.83,166.79,27.6453418]
[1730823352764,6.3421,166.88,166.82,27.6453418]
[1730823352944,6.3421,166.88,166.84,27.6453418]
[1730823353151,6.3421,166.88,166.8,27.6453418]
[1730823353152,6.3421,166.88,166.83,27.6453418]
[1730823353560,6.3421,166.88,166.84,27.6453418]
[1730823353750,6.3421,166.88,166.84,33.6389418]
[1730823353947,15.5332,166.9,166.86,27.6453418]
[1730823354455,6.582,166.92,166.88,27.6453418]
[1730823355041,34.2273418,166.92,166.87,27.6453418]
[1730823355446,6.582,166.92,166.87,27.6453418]
[1730823355646,6.582,166.92,166.87,33.6378418]
[1730823355971,34.2273418,166.92,166.87,5.9925]
[1730823356669,27.6453418,166.89,166.86,5.9928]
[1730823356862,27.6453418,166.89,166.84,48.6231418]
[1730823357055,23.776884,166.88,166.84,20.9778]
[1730823357462,23.776884,166.88,166.84,48.6231418]
[1730823357764,27.6453418,166.9,166.84,48.6231418]
[1730823358061,27.6453418,166.9,166.85,27.6453418]
[1730823358565,51.4222258,166.9,166.84,48.6231418]
[1730823358782,51.4222258,166.9,166.85,27.6453418]
[1730823359064,23.776884,166.91,166.86,27.6453418]
[1730823359360,0.1,166.96,166.9,27.6453418]
[1730823359563,0.1,166.96,166.92,27.6453418]
[1730823359860,33.9894418,166.98,166.94,27.6453418]
[1730823359861,6.2441,166.98,166.94,27.6453418]
[1730823360036,33.9894418,166.98,166.92,42.6217418]
[1730823360236,33.9894418,166.98,166.91,27.6453418]
[1730823360237,27.6453418,166.97,166.91,27.6453418]
[1730823360642,12.2328,166.98,166.93,27.6453418]
[1730823360859,6.2441,166.98,166.94,27.6453418]
[1730823361265,27.6453418,166.97,166.91,27.6453418]
[1730823361466,27.6453418,166.97,166.85,50.9439]
[1730823361467,27.6453418,166.92,166.87,27.6453418]
[1730823362144,27.8453418,166.96,166.87,27.6453418]
[1730823362145,23.776884,166.93,166.89,27.6453418]
[1730823362350,23.776884,166.94,166.89,27.6453418]
[1730823362550,51.4222258,166.94,166.89,27.6453418]
[1730823362754,51.4222258,166.94,166.88,27.6453418]
[1730823362956,51.4222258,166.94,166.89,27.6453418]
[1730823363152,51.4222258,166.94,166.87,20.9742]
[1730823363153,33.8894418,166.98,166.92,27.6453418]
[1730823363347,33.8894418,166.98,166.93,27.6453418]
[1730823363348,6.2441,166.98,166.93,27.6453418]
[1730823363744,0.3069863,166.99,166.95,27.6453418]
[1730823363940,0.3069863,166.99,166.98,27.6453418]
[1730823364147,0.3069863,166.99,166.98,47.6453418]
[1730823365261,0.3069863,166.99,166.98,53.6340418]
[1730823366377,0.3069863,167.07,166.99,20.0]
[1730823366547,0.3069863,167.07,167.06,27.6453418]
[1730823366867,0.3069863,167.07,167.03,27.6453418]
[1730823367374,0.3069863,167.07,167.05,27.6453418]
[1730823367666,0.3069863,167.07,167.06,27.6453418]
[1730823369458,0.3069863,167.07,167.06,33.6311418]
[1730823369978,0.3069863,167.07,167.06,5.9858]
[1730823370171,0.3069863,167.07,167.06,33.6311418]
[1730823370677,0.3069863,167.07,167.04,20.0]
[1730823370876,27.9523281,167.07,167.03,14.9673]
[1730823371361,0.3069863,167.07,167.04,27.6453418]
[1730823371761,0.3069863,167.07,167.06,47.6453418]
[1730823373469,0.3069863,167.07,167.06,53.6311418]
[1730823373765,0.3069863,167.07,167.06,33.6311418]
[1730823373990,0.3069863,167.07,167.05,20.0]
[1730823374568,0.3069863,167.07,167.05,47.6453418]
[1730823374769,0.3069863,167.07,167.06,27.6453418]
[1730823375579,0.3069863,167.07,167.06,5.9858]
[1730823375775,0.3069863,167.07,167.06,53.6311418]
[1730823378589,0.3069863,167.07,167.06,25.9858]
[1730823378786,0.3069863,167.07,167.06,53.6311418]
[1730823381099,0.3069863,167.15,167.07,20.0]
[1730823381306,0.3069863,167.15,167.12,27.6453418]
[1730823381489,0.3069863,167.15,167.13,27.6453418]
[1730823381686,0.3069863,167.15,167.12,27.6453418]
[1730823382195,0.3069863,167.15,167.09,20.0]
[1730823382196,0.3069863,167.15,167.1,27.6453418]
[1730823382393,27.9523281,167.15,167.09,47.6453418]
[1730823382603,27.9523281,167.15,167.1,27.6453418]
[1730823382795,0.3069863,167.15,167.1,27.6453418]
[1730823383604,0.3069863,167.15,167.13,27.6453418]
[1730823384007,0.3069863,167.15,167.11,27.6453418]
[1730823384385,0.3069863,167.15,167.12,27.6453418]
[1730823385198,0.3069863,167.15,167.13,27.6453418]
[1730823385708,27.9523281,167.15,167.1,20.9452]
[1730823385882,0.3069863,167.15,167.11,27.6453418]
[1730823386590,0.3069863,167.15,167.12,27.6453418]
[1730823386991,0.3069863,167.15,167.11,27.6453418]
[1730823387389,0.3069863,167.15,167.1,48.5905418]
[1730823388083,0.3069863,167.15,167.11,27.6453418]
[1730823388594,0.3069863,167.15,167.1,48.5905418]
[1730823389099,0.3069863,167.15,167.11,27.6453418]
[1730823389286,27.9523281,167.15,167.09,27.6453418]
[1730823389488,27.6453418,167.13,167.08,27.6453418]
[1730823389699,27.6453418,167.12,167.07,27.6453418]
[1730823390088,27.6453418,167.13,167.07,27.6453418]
[1730823390300,27.6453418,167.12,167.06,42.6095418]
[1730823390488,27.6453418,167.11,167.06,42.6095418]
[1730823391000,6.5292,167.08,167.03,27.6453418]
[1730823391409,6.5292,167.08,167.04,27.6453418]
[1730823391597,6.5292,167.08,167.06,27.6453418]
[1730823391905,6.5292,167.08,167.05,27.6453418]
[1730823392084,15.8741,167.09,167.07,27.6453418]
[1730823392285,15.8741,167.09,167.05,27.6453418]
[1730823392891,15.8741,167.09,167.06,27.6453418]
[1730823393291,6.5749,167.12,167.07,27.6453418]
[1730823393612,34.2202418,167.12,167.06,33.6308418]
[1730823393791,12.5588,167.12,167.07,27.6453418]
[1730823394188,40.2041418,167.12,167.06,33.6308418]
[1730823394393,27.6453418,167.11,167.06,33.6308418]
[1730823395007,40.2041418,167.12,167.06,33.6308418]
[1730823397396,40.2041418,167.12,167.07,27.6453418]
[1730823397593,40.2041418,167.12,167.06,33.6308418]
[1730823398307,40.2041418,167.12,167.07,27.6453418]
[1730823399621,6.5749,167.12,167.07,48.5943418]
[1730823400191,40.2040418,167.12,167.07,14.9637]
[1730823400409,27.6453418,167.11,167.07,14.9637]
[1730823400611,27.6453418,167.09,167.04,27.6453418]
[1730823400909,27.6453418,167.09,167.03,27.6453418]
[1730823401094,27.6453418,167.09,167.04,27.6453418]
[1730823401715,27.6453418,167.09,167.04,33.6316418]
[1730823401716,33.6301418,167.09,167.04,33.6316418]
[1730823402214,33.6301418,167.09,167.04,5.9863]
[1730823402713,27.6453418,167.09,167.04,33.6316418]
[1730823402920,33.6301418,167.09,167.04,33.6316418]
[1730823403118,5.9848,167.09,167.05,27.6453418]
[1730823403315,27.6453418,167.1,167.05,27.6453418]
[1730823403831,33.6297418,167.1,167.05,27.6453418]
[1730823404819,27.6453418,167.13,167.08,27.6453418]
[1730823405015,27.6453418,167.13,167.07,27.6453418]
[1730823405312,5.9831,167.14,167.05,48.5968418]
[1730823405313,27.6453418,167.1,167.05,48.5968418]
[1730823405721,27.6453418,167.09,167.05,14.9655]
[1730823405919,34.1441418,167.09,167.05,14.9655]
[1730823406100,34.1441418,167.09,167.05,42.6108418]
[1730823406101,6.4988,167.09,167.05,42.6108418]
[1730823406302,6.4988,167.09,167.06,27.6453418]
[1730823406497,6.4988,167.09,167.05,48.5970418]
[1730823406997,40.1289418,167.09,167.05,14.9655]
[1730823407630,12.4836,167.09,167.05,14.9655]
[1730823408409,6.4988,167.09,167.05,27.6453418]
[1730823409211,15.5536,167.1,167.07,27.6453418]
[1730823409410,5.984,167.12,167.07,17.21062586]
[1730823409715,23.19462586,167.12,167.07,17.21062586]
[1730823410096,23.19462586,167.12,167.06,17.21062586]
[1730823410297,23.19462586,167.12,167.06,23.19632586]
[1730823410497,17.21062586,167.1,167.06,5.9857]
[1730823412020,23.19472586,167.11,167.06,5.9857]
[1730823412813,17.21062586,167.11,167.06,20.9503]
[1730823414204,6.446,167.13,167.08,17.21062586]
[1730823414635,12.4293,167.13,167.08,17.21062586]
[1730823415158,29.63992586,167.13,167.08,17.21062586]
[1730823415310,29.63992586,167.13,167.07,17.21062586]
[1730823415620,29.63992586,167.13,167.08,5.9851]
[1730823415825,17.21062586,167.12,167.08,5.9851]
[1730823416208,29.63992586,167.13,167.08,5.9851]
[1730823416616,6.446,167.13,167.08,38.15852586]
[1730823417421,23.65662586,167.13,167.08,38.15852586]
[1730823417606,23.65662586,167.13,167.08,20.9479]
[1730823418418,17.21062586,167.11,167.06,17.21062586]
[1730823418619,17.21062586,167.11,167.05,17.21062586]
[1730823419042,17.21062586,167.1,167.05,17.21062586]
[1730823419552,17.21062586,167.1,167.05,23.19652586]
[1730823420441,17.21062586,167.1,167.05,5.9859]
[1730823420737,17.21062586,167.1,167.05,17.21062586]
[1730823420916,17.21062586,167.1,167.04,17.21062586]
[1730823421117,17.21062586,167.07,167.02,17.21062586]
[1730823421316,17.21062586,167.08,167.03,17.21062586]
[1730823421624,17.21062586,167.05,167.01,20.9567]
[1730823422124,17.21062586,167.05,167.01,14.9691]
[1730823422442,17.21062586,167.04,167.01,14.9691]